[Event "FIDE Grand Swiss 2023"]
[Site "Villa Marina, Douglas, Isle of Man"]
[Date "2023.11.04"]
[Round "10.10"]
[White "Vachier-Lagrave, Maxime"]
[Black "Wojtaszek, Radoslaw"]
[Result "1/2-1/2"]
[WhiteElo "2727"]
[BlackElo "2668"]
[EventDate "2023.10.25"]
[ECO "C77"]
[PlyCount "61"]
[BlackClock "00:35:25"]
[BlackFideId "1118358"]
[TimeControl "40/100 + 20/50 + 15 + 30s/move"]
[WhiteClock "00:40:47"]
[WhiteFideId "623539"]

1.e4 {[%clk 01:40:57][%emt 00:00:02]} 1...e5 {[%clk 01:40:53][%emt 00:00:08]} 
2.Nf3 {[%clk 01:41:24][%emt 00:00:03]} 2...Nc6 {[%clk 01:41:18][%emt 00:00:05]} 
3.Bb5 {[%clk 01:41:52][%emt 00:00:02]} 3...a6 {[%clk 01:41:41][%emt 00:00:06]} 
4.Ba4 {[%clk 01:42:21][%emt 00:00:02]} 4...Nf6 {[%clk 01:42:03][%emt 00:00:07]} 
5.Nc3 {[%clk 01:42:47][%emt 00:00:04]} 5...Bc5 {[%clk 01:42:15][%emt 00:00:17]} 
6.Bxc6 {[%clk 01:41:56][%emt 00:01:22]} 6...dxc6 {[%clk 01:42:35][%emt
00:00:09]} 7.d3 {[%clk 01:42:21][%emt 00:00:04]} 7...Bd6 {[%clk 01:41:15][%emt
00:01:51]} 8.h3 {[%clk 01:41:43][%emt 00:01:09]} 8...Be6 {[%clk 01:39:19][%emt
00:02:25]} 9.Bg5 {[%clk 01:31:38][%emt 00:10:35]} 9...h6 {[%clk 01:37:09][%emt
00:02:40]} 10.Bh4 {[%clk 01:32:03][%emt 00:00:05]} 10...Qe7 {[%clk
01:30:19][%emt 00:07:19]} 11.Bg3 {[%clk 01:28:36][%emt 00:03:58]} 11...Nd7 
{[%clk 01:24:58][%emt 00:05:50]} 12.Qe2 {[%clk 01:27:05][%emt 00:02:02]} 
12...O-O-O {[%clk 01:22:44][%emt 00:02:44]} 13.Nd1 {[%clk 01:26:02][%emt
00:01:33]} 13...g6 {[%clk 01:13:51][%emt 00:09:23]} 14.Bh4 {[%clk 01:24:12][%emt
00:02:20]} 14...f6 {[%clk 01:10:50][%emt 00:03:31]} 15.Ne3 {[%clk 01:23:04][%emt
00:01:38]} 15...Qf7 {[%clk 01:02:09][%emt 00:09:11]} 16.a3 {[%clk 01:20:56][%emt
00:02:39]} 16...g5 {[%clk 01:01:08][%emt 00:01:31]} 17.Bg3 {[%clk 01:21:19][%emt
00:00:07]} 17...Nf8 {[%clk 01:01:31][%emt 00:00:06]} 18.Nf5 {[%clk
01:12:54][%emt 00:08:56]} 18...Ng6 {[%clk 01:00:55][%emt 00:01:05]} 19.Nxd6+ 
{[%clk 01:12:46][%emt 00:00:39]} 19...cxd6 {[%clk 01:01:20][%emt 00:00:05]} 
20.O-O-O {[%clk 01:10:29][%emt 00:02:47]} 20...f5 {[%clk 00:56:10][%emt
00:05:40]} 21.exf5 {[%clk 01:10:36][%emt 00:00:23]} 21...Bxf5 {[%clk
00:56:31][%emt 00:00:09]} 22.Kb1 {[%clk 01:10:48][%emt 00:00:18]} 22...Rhe8 
{[%clk 00:54:11][%emt 00:02:50]} 23.Qd2 {[%clk 01:04:35][%emt 00:06:43]} 
23...c5 {[%clk 00:52:37][%emt 00:02:04]} 24.h4 {[%clk 01:02:51][%emt 00:02:15]} 
24...g4 {[%clk 00:52:31][%emt 00:00:36]} 25.h5 {[%clk 01:03:16][%emt 00:00:04]} 
25...gxf3 {[%clk 00:48:40][%emt 00:04:21]} 26.hxg6 {[%clk 01:03:41][%emt
00:00:06]} 26...Bxg6 {[%clk 00:49:07][%emt 00:00:03]} 27.gxf3 {[%clk
00:42:55][%emt 00:21:16]} 27...h5 {[%clk 00:49:25][%emt 00:00:11]} 28.f4 {[%clk
00:42:59][%emt 00:00:26]} 28...e4 {[%clk 00:44:37][%emt 00:05:18]} 29.d4 {[%clk
00:42:32][%emt 00:00:58]} 29...Bf5 {[%clk 00:44:37][%emt 00:00:29]} 30.dxc5 
{[%clk 00:41:36][%emt 00:01:26]} 30...dxc5 {[%clk 00:40:16][%emt 00:04:51]} 
31.Qc3 {[%clk 00:40:47][%emt 00:01:19]} 1/2-1/2

[Event "FIDE Grand Swiss 2023"]
[Site "Villa Marina, Douglas, Isle of Man"]
[Date "2023.11.04"]
[Round "10.11"]
[White "Anton Guijarro, David"]
[Black "Duda, Jan-Krzysztof"]
[Result "1/2-1/2"]
[WhiteElo "2653"]
[BlackElo "2726"]
[EventDate "2023.10.25"]
[ECO "E42"]
[PlyCount "75"]
[BlackFideId "1170546"]
[TimeControl "40/100 + 20/50 + 15 + 30s/move"]
[WhiteFideId "2285525"]

1.d4 {[%clk 01:40:54][%emt 00:00:05]} 1...Nf6 {[%clk 01:40:55][%emt 00:00:05]} 
2.c4 {[%clk 01:41:13][%emt 00:00:11]} 2...e6 {[%clk 01:41:21][%emt 00:00:04]} 
3.Nc3 {[%clk 01:41:22][%emt 00:00:21]} 3...Bb4 {[%clk 01:41:44][%emt 00:00:07]} 
4.e3 {[%clk 01:41:27][%emt 00:00:24]} 4...c5 {[%clk 01:41:58][%emt 00:00:17]} 
5.Ne2 {[%clk 01:41:05][%emt 00:00:53]} 5...cxd4 {[%clk 01:40:38][%emt 00:01:50]} 
6.exd4 {[%clk 01:41:05][%emt 00:00:29]} 6...d5 {[%clk 01:41:01][%emt 00:00:07]} 
7.c5 {[%clk 01:40:04][%emt 00:01:31]} 7...Ne4 {[%clk 01:41:08][%emt 00:00:23]} 
8.a3 {[%clk 01:39:42][%emt 00:00:52]} 8...Nxc3 {[%clk 01:33:12][%emt 00:08:26]} 
9.Nxc3 {[%clk 01:39:44][%emt 00:00:28]} 9...Bxc3+ {[%clk 01:33:38][%emt
00:00:05]} 10.bxc3 {[%clk 01:40:08][%emt 00:00:06]} 10...O-O {[%clk
01:34:00][%emt 00:00:07]} 11.Bd3 {[%clk 01:40:15][%emt 00:00:23]} 11...Qh4 
{[%clk 01:31:51][%emt 00:02:40]} 12.Rb1 {[%clk 01:24:37][%emt 00:16:08]} 
12...b6 {[%clk 01:30:09][%emt 00:02:12]} 13.cxb6 {[%clk 01:23:15][%emt
00:01:51]} 13...axb6 {[%clk 01:29:17][%emt 00:01:23]} 14.Rxb6 {[%clk
01:21:51][%emt 00:01:54]} 14...Nd7 {[%clk 01:29:39][%emt 00:00:07]} 15.Rb4 
{[%clk 01:18:34][%emt 00:03:47]} 15...Ba6 {[%clk 01:29:50][%emt 00:00:19]} 
16.O-O {[%clk 01:17:42][%emt 00:01:21]} 16...Rfc8 {[%clk 01:29:49][%emt
00:00:32]} 17.Qe2 {[%clk 01:12:38][%emt 00:05:34]} 17...Bxd3 {[%clk
01:28:15][%emt 00:02:04]} 18.Qxd3 {[%clk 01:13:04][%emt 00:00:05]} 18...Qd8 
{[%clk 01:24:53][%emt 00:03:52]} 19.c4 {[%clk 01:04:11][%emt 00:09:23]} 
19...dxc4 {[%clk 01:24:39][%emt 00:00:44]} 20.Rxc4 {[%clk 01:04:14][%emt
00:00:26]} 20...Rxc4 {[%clk 01:24:26][%emt 00:00:44]} 21.Qxc4 {[%clk
01:04:39][%emt 00:00:05]} 21...Nb6 {[%clk 01:24:47][%emt 00:00:08]} 22.Qb3 
{[%clk 01:02:15][%emt 00:02:54]} 22...Nd5 {[%clk 01:24:08][%emt 00:01:09]} 
23.Bd2 {[%clk 00:58:51][%emt 00:03:54]} 23...Qd7 {[%clk 01:07:00][%emt
00:17:38]} 24.Rb1 {[%clk 00:55:19][%emt 00:04:02]} 24...h5 {[%clk 01:04:03][%emt
00:03:28]} 25.Qf3 {[%clk 00:52:19][%emt 00:03:29]} 25...Qa7 {[%clk
01:03:26][%emt 00:01:08]} 26.Qxh5 {[%clk 00:42:20][%emt 00:10:28]} 26...Qxa3 
{[%clk 01:02:33][%emt 00:01:23]} 27.Qe2 {[%clk 00:40:32][%emt 00:02:18]} 
27...Nc3 {[%clk 00:58:14][%emt 00:04:50]} 28.Bxc3 {[%clk 00:40:27][%emt
00:00:34]} 28...Qxc3 {[%clk 00:58:40][%emt 00:00:04]} 29.Rd1 {[%clk
00:36:08][%emt 00:04:49]} 29...Rd8 {[%clk 00:55:02][%emt 00:04:08]} 30.Qe3 
{[%clk 00:32:57][%emt 00:03:41]} 30...Qc2 {[%clk 00:55:07][%emt 00:00:26]} 
31.Qd2 {[%clk 00:31:34][%emt 00:01:52]} 31...Qxd2 {[%clk 00:55:13][%emt
00:00:25]} 32.Rxd2 {[%clk 00:31:58][%emt 00:00:06]} 32...Rd5 {[%clk
00:55:38][%emt 00:00:04]} 33.f4 {[%clk 00:31:52][%emt 00:00:36]} 33...f6 {[%clk
00:54:58][%emt 00:01:11]} 34.Kf2 {[%clk 00:32:13][%emt 00:00:09]} 34...e5 
{[%clk 00:55:23][%emt 00:00:05]} 35.Ke3 {[%clk 00:32:27][%emt 00:00:15]} 
35...exd4+ {[%clk 00:55:49][%emt 00:00:05]} 36.Rxd4 {[%clk 00:32:53][%emt
00:00:04]} 36...Rh5 {[%clk 00:56:13][%emt 00:00:05]} 37.h3 {[%clk 00:33:17][%emt
00:00:06]} 37...Kh7 {[%clk 00:56:30][%emt 00:00:14]} 38.Kf3 {[%clk 00:33:04]} ( 
38.Ke4 {[%emt 00:01:30]} ) 1/2-1/2

[Event "FIDE Grand Swiss 2023"]
[Site "Villa Marina, Douglas, Isle of Man"]
[Date "2023.11.04"]
[Round "10.12"]
[White "Abdusattorov, Nodirbek"]
[Black "Sindarov, Javokhir"]
[Result "1/2-1/2"]
[WhiteElo "2716"]
[BlackElo "2658"]
[EventDate "2023.10.25"]
[ECO "C77"]
[PlyCount "74"]
[BlackClock "00:04:16"]
[BlackFideId "14205483"]
[TimeControl "40/100 + 20/50 + 15 + 30s/move"]
[WhiteClock "00:06:42"]
[WhiteFideId "14204118"]

1.e4 {[%clk 01:40:44][%emt 00:00:15]} 1...e5 {[%clk 01:40:55][%emt 00:00:06]} 
2.Nf3 {[%clk 01:41:07][%emt 00:00:07]} 2...Nc6 {[%clk 01:41:22][%emt 00:00:03]} 
3.Bb5 {[%clk 01:41:16][%emt 00:00:21]} 3...a6 {[%clk 01:41:47][%emt 00:00:05]} 
4.Ba4 {[%clk 01:41:34][%emt 00:00:11]} 4...Nf6 {[%clk 01:42:13][%emt 00:00:05]} 
5.Nc3 {[%clk 01:41:43][%emt 00:00:21]} 5...Bc5 {[%clk 01:21:44][%emt 00:21:00]} 
6.O-O {[%clk 01:41:45][%emt 00:00:26]} 6...O-O {[%clk 01:16:20][%emt 00:05:55]} 
7.Bxc6 {[%clk 01:40:21][%emt 00:01:54]} 7...dxc6 {[%clk 01:16:34][%emt
00:00:16]} 8.d3 {[%clk 01:40:26][%emt 00:00:25]} 8...Nd7 {[%clk 01:15:03][%emt
00:02:01]} 9.Be3 {[%clk 01:37:40][%emt 00:03:16]} 9...Bd6 {[%clk 01:15:24][%emt
00:00:09]} 10.a4 {[%clk 01:33:07][%emt 00:05:03]} 10...a5 {[%clk 01:08:57][%emt
00:06:57]} 11.Ne2 {[%clk 01:31:48][%emt 00:01:49]} 11...Re8 {[%clk
01:09:08][%emt 00:00:19]} 12.Nd2 {[%clk 01:25:27][%emt 00:06:51]} 12...Nf8 
{[%clk 00:56:42][%emt 00:12:56]} 13.Nc4 {[%clk 01:17:41][%emt 00:08:16]} 
13...Ng6 {[%clk 00:45:58][%emt 00:11:14]} 14.Qe1 {[%clk 01:17:57][%emt
00:00:14]} 14...b6 {[%clk 00:46:23][%emt 00:00:05]} 15.Nxd6 {[%clk
01:18:10][%emt 00:00:17]} 15...cxd6 {[%clk 00:39:11][%emt 00:07:42]} 16.f4 
{[%clk 01:17:28][%emt 00:01:12]} 16...f5 {[%clk 00:37:12][%emt 00:02:29]} 
17.exf5 {[%clk 01:02:41][%emt 00:15:17]} 17...Bxf5 {[%clk 00:37:36][%emt
00:00:06]} 18.fxe5 {[%clk 01:02:22][%emt 00:00:49]} 18...Bg4 {[%clk
00:37:56][%emt 00:00:10]} 19.Nf4 {[%clk 01:02:09][%emt 00:00:44]} 19...Nxe5 
{[%clk 00:38:20][%emt 00:00:05]} 20.Qg3 {[%clk 00:59:04][%emt 00:03:34]} 
20...Ra7 {[%clk 00:31:31][%emt 00:07:20]} 21.d4 {[%clk 00:53:17][%emt 00:06:17]} 
21...Nd7 {[%clk 00:20:16][%emt 00:11:44]} 22.d5 {[%clk 00:53:30][%emt 00:00:17]} 
22...c5 {[%clk 00:19:50][%emt 00:00:57]} 23.Qxg4 {[%clk 00:50:12][%emt
00:03:47]} 23...Rxe3 {[%clk 00:20:08][%emt 00:00:12]} 24.Ne6 {[%clk
00:50:08][%emt 00:00:35]} 24...Qe7 {[%clk 00:20:18][%emt 00:00:20]} 25.Qf4 
{[%clk 00:49:09][%emt 00:01:28]} 25...Re5 {[%clk 00:20:04][%emt 00:00:43]} 
26.Ra3 {[%clk 00:49:38][%emt 00:00:03]} 26...Ra8 {[%clk 00:08:30][%emt
00:12:04]} 27.Raf3 {[%clk 00:39:48][%emt 00:10:19]} 27...Nf6 {[%clk
00:07:01][%emt 00:02:00]} 28.Nxg7 {[%clk 00:39:11][%emt 00:01:06]} 28...Kxg7 
{[%clk 00:07:00][%emt 00:00:32]} 29.Qg3+ {[%clk 00:36:49][%emt 00:02:52]} 
29...Kh8 {[%clk 00:07:16][%emt 00:00:14]} 30.Rxf6 {[%clk 00:37:08][%emt
00:00:10]} 30...Rg8 {[%clk 00:07:34][%emt 00:00:12]} 31.Qf3 {[%clk
00:24:53][%emt 00:12:45]} 31...Re2 {[%clk 00:07:13][%emt 00:00:52]} 32.g3 
{[%clk 00:25:10][%emt 00:00:13]} 32...Rxc2 {[%clk 00:07:25][%emt 00:00:17]} 
33.Rf7 {[%clk 00:23:35][%emt 00:02:05]} 33...Qh4 {[%clk 00:04:45][%emt
00:03:10]} 34.Rf2 {[%clk 00:20:59][%emt 00:03:07]} 34...Rxf2 {[%clk
00:04:21][%emt 00:00:54]} 35.Qxf2 {[%clk 00:21:16][%emt 00:00:13]} 35...Qd4 
{[%clk 00:04:47][%emt 00:00:03]} 36.Qxd4+ {[%clk 00:17:53][%emt 00:03:52]} 
36...cxd4 {[%clk 00:05:13][%emt 00:00:05]} 37.Kf1 {[%clk 00:17:50][%emt
00:00:32]} 37...Re8 {[%clk 00:04:16][%emt 00:01:27]} 1/2-1/2

[Event "FIDE Grand Swiss 2023"]
[Site "Villa Marina, Douglas, Isle of Man"]
[Date "2023.11.04"]
[Round "10.13"]
[White "Vitiugov, Nikita"]
[Black "Petrosyan, Manuel"]
[Result "1-0"]
[WhiteElo "2711"]
[BlackElo "2604"]
[EventDate "2023.10.25"]
[ECO "C77"]
[PlyCount "73"]
[BlackFideId "13300857"]
[TimeControl "40/100 + 20/50 + 15 + 30s/move"]
[WhiteFideId "4152956"]

1.e4 {[%clk 01:40:19][%emt 00:00:40]} 1...e5 {[%clk 01:38:21][%emt 00:02:40]} 
2.Nf3 {[%clk 01:40:39][%emt 00:00:09]} 2...Nc6 {[%clk 01:38:43][%emt 00:00:10]} 
3.Bb5 {[%clk 01:40:23][%emt 00:00:45]} 3...a6 {[%clk 01:38:48][%emt 00:00:26]} 
4.Ba4 {[%clk 01:40:43][%emt 00:00:10]} 4...Nf6 {[%clk 01:38:28][%emt 00:00:49]} 
5.Nc3 {[%clk 01:39:05][%emt 00:02:07]} 5...Bd6 {[%clk 01:19:43][%emt 00:19:15]} 
6.d3 {[%clk 01:33:11][%emt 00:06:25]} 6...O-O {[%clk 01:14:13][%emt 00:05:59]} 
7.O-O {[%clk 01:23:17][%emt 00:10:25]} 7...Re8 {[%clk 01:09:31][%emt 00:05:12]} 
8.a3 {[%clk 01:13:17][%emt 00:10:31]} 8...h6 {[%clk 01:04:14][%emt 00:05:46]} 
9.Be3 {[%clk 01:08:10][%emt 00:05:38]} 9...Bf8 {[%clk 00:58:30][%emt 00:06:14]} 
10.Nd5 {[%clk 01:06:30][%emt 00:02:10]} 10...b5 {[%clk 00:46:43][%emt 00:12:16]} 
11.Bb3 {[%clk 01:06:08][%emt 00:00:52]} 11...Na5 {[%clk 00:38:56][%emt
00:08:17]} 12.Nxf6+ {[%clk 01:01:12][%emt 00:05:26]} 12...Qxf6 {[%clk
00:39:22][%emt 00:00:05]} 13.Ba2 {[%clk 01:01:28][%emt 00:00:14]} 13...c5 
{[%clk 00:38:21][%emt 00:01:31]} 14.Nd2 {[%clk 00:47:07][%emt 00:14:51]} 
14...d6 {[%clk 00:34:43][%emt 00:04:07]} 15.f4 {[%clk 00:44:59][%emt 00:02:38]} 
15...Be6 {[%clk 00:34:09][%emt 00:01:04]} 16.Bxe6 {[%clk 00:38:22][%emt
00:07:07]} 16...fxe6 {[%clk 00:22:24][%emt 00:12:15]} 17.fxe5 {[%clk
00:32:24][%emt 00:06:28]} 17...Qxe5 {[%clk 00:22:53]} 18.Qg4 {[%clk
00:28:40][%emt 00:04:14]} 18...Qxb2 {[%clk 00:16:49][%emt 00:06:34]} 19.Bxh6 
{[%clk 00:28:03][%emt 00:01:08]} 19...Nc6 {[%clk 00:17:02][%emt 00:00:16]} 
20.Rae1 {[%clk 00:20:14][%emt 00:08:19]} 20...Ra7 {[%clk 00:13:18][%emt
00:04:15]} 21.Nf3 {[%clk 00:15:01][%emt 00:05:43]} 21...Ne5 {[%clk
00:03:13][%emt 00:10:35]} 22.Nxe5 {[%clk 00:12:33][%emt 00:02:58]} 22...Qxe5 
{[%clk 00:03:41][%emt 00:00:01]} 23.Bf4 {[%clk 00:12:39][%emt 00:00:24]} 
23...Qf6 {[%clk 00:02:12][%emt 00:01:59]} 24.Be3 {[%clk 00:12:01][%emt
00:01:08]} 24...Qc3 {[%clk 00:01:17][%emt 00:01:25]} 25.Re2 {[%clk
00:06:10][%emt 00:06:21]} 25...Rf7 {[%clk 00:01:02][%emt 00:00:45]} 26.Ref2 
{[%clk 00:06:35][%emt 00:00:05]} 26...Rxf2 {[%clk 00:01:24][%emt 00:00:08]} 
27.Bxf2 {[%clk 00:07:04][%emt 00:00:01]} 27...Qa5 {[%clk 00:00:33][%emt
00:01:22]} 28.Be3 {[%clk 00:05:09][%emt 00:02:24]} 28...Qc7 {[%clk
00:00:33][%emt 00:00:31]} 29.Rf3 {[%clk 00:05:03][%emt 00:00:35]} 29...c4 
{[%clk 00:00:36][%emt 00:00:27]} 30.d4 {[%clk 00:03:40][%emt 00:01:52]} 30...d5 
{[%clk 00:00:39][%emt 00:00:28]} 31.e5 {[%clk 00:01:40][%emt 00:02:31]} 
31...Bxa3 {[%clk 00:00:54][%emt 00:00:15]} 32.Qg6 {[%clk 00:01:39][%emt
00:00:30]} 32...Qd7 {[%clk 00:00:58][%emt 00:00:26]} 33.Bg5 {[%clk
00:01:37][%emt 00:00:32]} 33...Bb2 {[%clk 00:01:02][%emt 00:00:26]} 34.Rh3 
{[%clk 00:01:49][%emt 00:00:18]} 34...Bxd4+ {[%clk 00:01:14][%emt 00:00:18]} 
35.Kh1 {[%clk 00:02:18]} 35...Re7 {[%clk 00:00:32][%emt 00:01:13]} 36.Qh7+ 
{[%clk 00:02:32][%emt 00:00:16]} 36...Kf8 {[%clk 00:01:00][%emt 00:00:01]} 
37.Rf3+ {[%clk 00:02:56][%emt 00:00:06]} 1-0

[Event "FIDE Grand Swiss 2023"]
[Site "Villa Marina, Douglas, Isle of Man"]
[Date "2023.11.04"]
[Round "10.14"]
[White "Sarana, Alexey"]
[Black "Cheparinov, Ivan"]
[Result "1/2-1/2"]
[WhiteElo "2682"]
[BlackElo "2658"]
[EventDate "2023.10.25"]
[ECO "D41"]
[PlyCount "61"]
[BlackFideId "2905540"]
[TimeControl "40/100 + 20/50 + 15 + 30s/move"]
[WhiteFideId "24133795"]

1.d4 {[%clk 01:40:57][%emt 00:00:02]} 1...Nf6 {[%clk 01:40:54][%emt 00:00:05]} 
2.c4 {[%clk 01:41:21][%emt 00:00:07]} 2...e6 {[%clk 01:41:20][%emt 00:00:04]} 
3.Nf3 {[%clk 01:41:38][%emt 00:00:13]} 3...d5 {[%clk 01:41:45][%emt 00:00:05]} 
4.Nc3 {[%clk 01:42:04][%emt 00:00:05]} 4...c5 {[%clk 01:42:02][%emt 00:00:12]} 
5.cxd5 {[%clk 01:39:37][%emt 00:02:58]} 5...cxd4 {[%clk 01:42:16][%emt
00:00:16]} 6.Qxd4 {[%clk 01:37:26][%emt 00:02:40]} 6...exd5 {[%clk
01:42:00][%emt 00:00:46]} 7.Bg5 {[%clk 01:37:52][%emt 00:00:05]} 7...Be7 {[%clk
01:42:23][%emt 00:00:06]} 8.e3 {[%clk 01:38:14][%emt 00:00:08]} 8...O-O {[%clk
01:42:46][%emt 00:00:07]} 9.Be2 {[%clk 01:38:29][%emt 00:00:15]} 9...Nc6 {[%clk
01:42:49][%emt 00:00:26]} 10.Qd2 {[%clk 01:21:49][%emt 00:17:12]} 10...Be6 
{[%clk 01:35:30][%emt 00:07:49]} 11.O-O {[%clk 01:20:45][%emt 00:01:33]} 
11...Ne4 {[%clk 01:17:01][%emt 00:18:58]} 12.Bxe7 {[%clk 01:20:30][%emt
00:00:46]} 12...Qxe7 {[%clk 01:15:31][%emt 00:02:00]} 13.Qc2 {[%clk
01:18:05][%emt 00:02:54]} 13...Rac8 {[%clk 01:14:11][%emt 00:01:51]} 14.Rfc1 
{[%clk 01:17:00][%emt 00:01:35]} 14...Rfd8 {[%clk 01:02:43][%emt 00:11:58]} 
15.Qa4 {[%clk 01:11:13][%emt 00:06:18]} 15...Qf6 {[%clk 00:51:17][%emt
00:11:55]} 16.Rc2 {[%clk 00:46:25][%emt 00:25:18]} 16...Bf5 {[%clk
00:44:46][%emt 00:07:01]} 17.Nxe4 {[%clk 00:45:58][%emt 00:00:57]} 17...dxe4 
{[%clk 00:41:43][%emt 00:03:33]} 18.Nd2 {[%clk 00:33:45][%emt 00:12:42]} 
18...Nd4 {[%clk 00:39:40][%emt 00:02:34]} 19.exd4 {[%clk 00:33:53][%emt
00:00:22]} 19...Rxc2 {[%clk 00:40:06][%emt 00:00:04]} 20.Qxc2 {[%clk
00:34:18][%emt 00:00:05]} 20...e3 {[%clk 00:40:32][%emt 00:00:04]} 21.Qc3 
{[%clk 00:34:34][%emt 00:00:14]} 21...exd2 {[%clk 00:40:57][%emt 00:00:06]} 
22.Qxd2 {[%clk 00:34:57][%emt 00:00:06]} 22...Qxd4 {[%clk 00:40:53][%emt
00:00:33]} 23.Qxd4 {[%clk 00:35:20][%emt 00:00:07]} 23...Rxd4 {[%clk
00:41:20][%emt 00:00:04]} 24.Kf1 {[%clk 00:34:53][%emt 00:00:57]} 24...Kf8 
{[%clk 00:41:28][%emt 00:00:22]} 25.Rd1 {[%clk 00:34:25][%emt 00:00:58]} 
25...Rxd1+ {[%clk 00:41:52][%emt 00:00:06]} 26.Bxd1 {[%clk 00:34:53][%emt
00:00:02]} 26...Be6 {[%clk 00:42:01][%emt 00:00:21]} 27.a3 {[%clk 00:35:18][%emt
00:00:04]} 27...Ke7 {[%clk 00:42:01][%emt 00:00:30]} 28.Ke2 {[%clk
00:35:44][%emt 00:00:03]} 28...Bd5 {[%clk 00:42:04][%emt 00:00:29]} 29.g3 
{[%clk 00:36:08][%emt 00:00:06]} 29...Kd6 {[%clk 00:42:11][%emt 00:00:23]} 
30.Kd3 {[%clk 00:36:34][%emt 00:00:03]} 30...Kc5 {[%clk 00:42:18][%emt
00:00:23]} 31.b4+ {[%clk 00:37:00][%emt 00:00:05]} 1/2-1/2